bitfinex/quotes_BTCUSD_20250414
["timestamp","ask_amount","ask_price","bid_price","bid_amount"]
[1744599497486,0.85137202,85087.0,85086.0,8.714e-05]
[1744599499413,0.51137202,85087.0,85086.0,8.714e-05]
[1744599501619,0.49683117,85087.0,85086.0,8.714e-05]
[1744599502733,0.49483117,85087.0,85086.0,8.714e-05]
[1744599503031,0.51037202,85087.0,85086.0,8.714e-05]
[1744599503635,0.51137202,85087.0,85086.0,8.714e-05]
[1744599504166,0.50937202,85087.0,85086.0,8.714e-05]
[1744599504319,0.51037202,85087.0,85086.0,8.714e-05]
[1744599504924,0.50937202,85087.0,85086.0,8.714e-05]
[1744599505163,0.51037202,85087.0,85086.0,8.714e-05]
[1744599506174,0.37498963,85087.0,85086.0,0.18813214]
[1744599506468,0.37498963,85087.0,85086.0,0.20929595]
[1744599506867,0.49583117,85087.0,85086.0,8.714e-05]
[1744599507071,0.49483117,85087.0,85086.0,8.714e-05]
[1744599507447,0.49383117,85087.0,85086.0,8.714e-05]
[1744599507859,0.49283117,85087.0,85086.0,8.714e-05]
[1744599508318,0.49383117,85087.0,85086.0,8.714e-05]
[1744599511427,0.50837202,85087.0,85086.0,8.714e-05]
[1744599511582,0.9691005,85087.0,85086.0,8.714e-05]
[1744599511789,0.84837202,85087.0,85086.0,8.714e-05]
[1744599516782,0.011755,85066.0,85062.0,0.011756]
[1744599517001,0.64254341,85065.0,85062.0,0.011756]
[1744599517220,0.02191382,85064.0,85062.0,0.011756]
[1744599517449,0.13259654,85063.0,85060.0,0.011756]
[1744599517676,0.011756,85061.0,85055.0,0.060557]
[1744599517905,0.14275536,85060.0,85057.0,0.188109]
[1744599518335,0.15451136,85060.0,85057.0,0.199864]
[1744599518759,0.02191382,85059.0,85057.0,0.011756]
[1744599518971,0.12084154,85058.0,85057.0,0.011756]
[1744599519139,0.14275536,85058.0,85057.0,0.011756]
[1744599519361,0.14275536,85058.0,85057.0,0.199865]
[1744599519566,0.02191382,85058.0,85057.0,0.29680692]
[1744599519938,0.02191382,85058.0,85057.0,0.30080692]
[1744599520145,0.34914187,85065.0,85064.0,0.188093]
[1744599520463,0.38008744,85065.0,85064.0,0.188093]
[1744599520642,0.38008744,85065.0,85064.0,0.23001573]
[1744599521829,0.38008744,85065.0,85064.0,0.23101573]
[1744599522357,0.01195295,85071.0,85068.0,0.011755]
[1744599522574,0.1726,85075.0,85074.0,0.011754]
[1744599522798,0.29344154,85075.0,85074.0,0.011754]
[1744599523223,0.31542242,85075.0,85074.0,0.011754]
[1744599523963,0.3250613,85075.0,85074.0,0.199823]
[1744599524422,0.3260613,85075.0,85074.0,0.199823]
[1744599525040,0.3260613,85075.0,85074.0,0.188071]
[1744599525348,0.1534613,85075.0,85074.0,0.188071]
[1744599526794,0.1514613,85075.0,85074.0,0.188071]
[1744599526994,0.1524613,85075.0,85074.0,0.188071]
[1744599527256,0.1534613,85075.0,85074.0,0.188071]
[1744599527950,0.1534613,85075.0,85069.0,0.011755]
[1744599528152,0.12084154,85074.0,85072.0,0.011754]
[1744599528299,0.12084154,85074.0,85069.0,0.011755]
[1744599528300,0.02198088,85073.0,85070.0,0.011755]
[1744599528499,0.13259554,85072.0,85069.0,0.011755]
[1744599528705,0.14282242,85072.0,85069.0,0.011755]
[1744599529018,0.13259554,85072.0,85068.0,0.011755]
[1744599529460,0.13259554,85072.0,85069.0,0.001]
[1744599529619,0.13259554,85072.0,85068.0,0.011755]
[1744599529816,0.32067254,85072.0,85068.0,0.011755]
[1744599530021,0.30891854,85072.0,85069.0,0.001]
[1744599530564,0.12084154,85072.0,85069.0,0.0716331]
[1744599530858,0.12084154,85072.0,85069.0,0.0706331]
[1744599532174,0.12084154,85072.0,85069.0,0.011755]
[1744599532846,0.12084154,85072.0,85069.0,0.199835]
[1744599533067,0.12084154,85072.0,85069.0,0.200835]
[1744599533288,0.12084154,85072.0,85069.0,0.199835]
[1744599533499,0.12084154,85072.0,85069.0,0.200835]
[1744599533758,0.12084154,85072.0,85070.0,0.0412427]
[1744599534219,0.12084154,85072.0,85071.0,0.188078]
[1744599536610,0.12084154,85072.0,85071.0,0.189078]
[1744599540633,0.12084154,85072.0,85071.0,0.001]
[1744599543188,0.13538239,85072.0,85071.0,0.001]
[1744599543520,0.011755,85065.0,85060.0,0.199856]
[1744599543725,0.12084154,85064.0,85060.0,0.24101742]
[1744599544120,0.32069154,85064.0,85058.0,0.199861]
[1744599544343,0.011756,85061.0,85057.0,0.011756]
[1744599544569,0.12084154,85060.0,85058.0,0.011756]
[1744599545495,0.12084154,85060.0,85058.0,0.199861]
[1744599545850,0.12084154,85060.0,85058.0,0.202861]
[1744599546863,0.12084154,85060.0,85058.0,0.203861]
[1744599547787,0.12084154,85060.0,85059.0,0.04273752]
[1744599547986,0.12084154,85060.0,85058.0,0.203861]
[1744599548496,0.12084154,85060.0,85058.0,0.015756]
[1744599548741,0.12084154,85060.0,85058.0,0.001]
[1744599548904,0.12084154,85060.0,85059.0,0.003]
[1744599549687,0.12084154,85060.0,85059.0,0.001]
[1744599550553,0.12084154,85060.0,85059.0,0.004]
[1744599552793,0.12084154,85060.0,85059.0,0.192104]
[1744599553339,0.12084154,85060.0,85059.0,0.004]
[1744599554858,0.12084154,85060.0,85059.0,0.192104]
[1744599555649,0.12084154,85060.0,85059.0,0.25277732]
[1744599556451,0.34914187,85065.0,85064.0,0.188093]
[1744599558351,0.37113515,85065.0,85064.0,0.188093]
[1744599558544,0.37113515,85065.0,85064.0,0.189093]
[1744599559586,0.34914187,85065.0,85064.0,0.189093]
[1744599559785,0.34914187,85065.0,85064.0,0.22661034]
[1744599560384,0.17212,85073.0,85072.0,0.188075]
[1744599560583,0.29296154,85073.0,85072.0,0.188075]
[1744599561583,0.29396154,85073.0,85072.0,0.188075]
[1744599562725,0.29496154,85073.0,85072.0,0.188075]
[1744599562931,0.29444154,85073.0,85072.0,0.2468495]
[1744599564292,0.29344154,85073.0,85072.0,0.2468495]
[1744599564687,0.29344154,85073.0,85072.0,0.2478495]
[1744599565359,0.29244154,85073.0,85072.0,0.2478495]
[1744599570009,0.29244154,85073.0,85072.0,0.189075]
[1744599571271,0.31443131,85073.0,85072.0,0.189075]
[1744599571908,0.02198977,85073.0,85072.0,0.283975]
[1744599572100,0.00903201,85088.0,85086.0,0.188045]
[1744599572320,0.12168834,85087.0,85086.0,0.188045]
[1744599572728,0.14366443,85087.0,85086.0,0.188045]
[1744599573456,0.12168834,85087.0,85086.0,0.188045]
[1744599573810,0.12168834,85087.0,85086.0,0.2656156]
[1744599574576,0.12468834,85087.0,85086.0,0.2656156]
[1744599574711,0.12668834,85087.0,85086.0,0.2656156]
[1744599574909,0.12368834,85087.0,85086.0,0.2656156]
[1744599575106,0.12168834,85087.0,85086.0,0.2656156]
[1744599575329,0.12268834,85087.0,85086.0,0.2656156]
[1744599575536,0.12368834,85087.0,85086.0,0.188045]
[1744599576287,0.0028468,85087.0,85086.0,0.282845]
[1744599577520,0.0018468,85087.0,85086.0,0.282845]
[1744599578136,0.0008468,85087.0,85086.0,0.282845]
[1744599578441,0.0018468,85087.0,85086.0,0.282845]
[1744599583405,0.12268834,85087.0,85084.0,0.1998]
[1744599583616,0.12084154,85086.0,85080.0,0.188058]
[1744599583817,0.02193941,85085.0,85081.0,0.011753]
[1744599584034,0.12084154,85084.0,85080.0,0.011753]
[1744599584237,0.02193941,85083.0,85076.0,0.19982]
[1744599584449,0.12084154,85082.0,85079.0,0.011753]
[1744599584649,0.12084154,85082.0,85078.0,0.011753]
[1744599584855,0.30889554,85082.0,85081.0,0.001]
[1744599585499,0.0008468,85087.0,85086.0,0.188045]
[1744599585649,0.0008468,85087.0,85086.0,0.19039519]
[1744599587086,0.00027196,85096.0,85095.0,0.188025]
[1744599587282,0.00041069,85096.0,85095.0,0.24497686]
[1744599588310,0.00341069,85096.0,85095.0,0.24497686]
[1744599588740,0.00341069,85096.0,85095.0,0.05695186]
[1744599588905,0.00541069,85096.0,85095.0,0.24497686]
[1744599592400,0.12625223,85096.0,85088.0,0.011752]
[1744599592541,0.30886654,85095.0,85090.0,0.011752]
[1744599592753,0.188029,85094.0,85090.0,0.011752]
[1744599593063,0.188029,85094.0,85075.0,0.188067]
[1744599593064,0.011752,85085.0,85073.0,0.011754]
[1744599593409,0.188055,85082.0,85078.0,0.011753]
[1744599593735,0.12084154,85081.0,85078.0,0.011753]
[1744599593889,0.34914187,85084.0,85081.0,0.199809]
[1744599594091,0.34914187,85084.0,85083.0,0.188051]
[1744599596193,0.00041069,85096.0,85095.0,0.188025]
[1744599597245,0.00241069,85096.0,85095.0,0.188025]
[1744599597442,0.188031,85093.0,85087.0,0.199793]
[1744599597683,0.12084154,85093.0,85090.0,0.011752]
[1744599598045,0.12084154,85093.0,85090.0,0.199786]
[1744599599128,0.12084154,85093.0,85090.0,0.011752]
[1744599599531,0.188037,85090.0,85083.0,0.18805]
[1744599599730,0.12084154,85089.0,85087.0,0.011752]
[1744599600061,0.02196962,85088.0,85085.0,0.011752]
[1744599600259,0.18806,85079.0,85078.0,0.0458]
[1744599600478,0.02196962,85087.0,85080.0,0.011753]
[1744599600684,0.12084154,85086.0,85068.0,0.0458]
[1744599600885,0.14281116,85086.0,85077.0,0.011754]
[1744599601065,0.188052,85083.0,85080.0,0.011753]
[1744599601415,0.02196962,85082.0,85080.0,0.011753]
[1744599601615,0.02196962,85082.0,85081.0,0.011753]
[1744599601867,0.12084154,85086.0,85081.0,0.011753]
[1744599602030,0.12084154,85086.0,85082.0,0.0424136]
[1744599602207,0.02198655,85085.0,85082.0,0.0424136]
[1744599602592,0.21003555,85084.0,85082.0,0.0424136]
[1744599602800,0.02198655,85084.0,85083.0,0.0948]
[1744599603005,0.188001,85106.0,85093.0,0.011751]
[1744599603006,0.188009,85103.0,85093.0,0.011751]
[1744599603206,0.02198356,85095.0,85093.0,0.0141011]
[1744599603433,0.02198356,85095.0,85092.0,0.011751]
[1744599603606,0.0028468,85099.0,85093.0,0.19978]
[1744599603822,0.0028468,85099.0,85094.0,0.188025]
[1744599604029,0.0028468,85099.0,85095.0,0.0599339]
[1744599604634,0.1908628,85099.0,85093.0,0.199779]
[1744599604818,0.12084154,85095.0,85086.0,0.188043]
[1744599605020,0.12084154,85095.0,85092.0,0.011751]
[1744599605865,0.12084154,85095.0,85088.0,0.011752]
[1744599606004,0.12084154,85095.0,85092.0,0.011751]
[1744599606205,0.011751,85093.0,85087.0,0.18804]
[1744599606407,0.188038,85090.0,85085.0,0.011752]
[1744599606640,0.12084154,85089.0,85086.0,0.011752]
[1744599607263,0.201777,85095.0,85092.0,0.19978]
[1744599607264,0.002,85095.0,85092.0,0.19978]
[1744599607460,0.00241069,85096.0,85094.0,0.188027]
[1744599607663,0.12084154,85095.0,85091.0,0.188033]
[1744599607883,0.12084154,85095.0,85092.0,0.011751]
[1744599608290,0.12084154,85095.0,85092.0,0.19978]
[1744599608448,0.12084154,85095.0,85093.0,0.188027]
[1744599609321,0.12084154,85095.0,85092.0,0.19978]
[1744599609468,0.10248154,85095.0,85093.0,0.0470074]
[1744599609855,0.10448154,85095.0,85093.0,0.0470074]
[1744599610057,0.10248154,85095.0,85093.0,0.2350344]
[1744599610337,0.10448154,85095.0,85093.0,0.2350344]
[1744599610523,0.10648154,85095.0,85093.0,0.2350344]
[1744599610720,0.10648154,85095.0,85094.0,0.04170326]
[1744599611512,0.10448154,85095.0,85094.0,0.04170326]
[1744599611787,0.10448154,85095.0,84727.0,0.3794]
[1744599612057,0.199782,85093.0,85084.0,0.0426736]
[1744599612239,0.011752,85088.0,85084.0,0.0426736]
[1744599612544,0.12084154,85087.0,85086.0,0.011752]
[1744599613668,0.12084154,85087.0,85085.0,0.011752]
[1744599613898,0.12084154,85087.0,85085.0,0.03835036]
[1744599614393,0.12184154,85087.0,85085.0,0.03835036]
[1744599614819,0.12084154,85087.0,85085.0,0.03835036]
[1744599615774,0.12184154,85087.0,85085.0,0.03835036]
[1744599616679,0.12184154,85087.0,85086.0,0.188045]
[1744599617161,0.12184154,85087.0,85086.0,0.2537372]
[1744599617700,0.12084154,85087.0,85086.0,0.0656922]
[1744599617917,0.12184154,85087.0,85086.0,0.0656922]
[1744599618141,0.12184154,85087.0,85085.0,0.011752]
[1744599619117,0.001,85087.0,85085.0,0.011752]
[1744599619441,0.001,85087.0,85086.0,0.287045]
[1744599620460,0.34914187,85088.0,85086.0,0.287045]
[1744599620763,0.001,85087.0,85086.0,0.287045]
[1744599620991,0.001,85087.0,85086.0,0.35997746]
[1744599621265,0.34914187,85088.0,85086.0,0.35997746]
[1744599621647,0.35014187,85088.0,85086.0,0.35997746]
[1744599622095,0.001,85088.0,85086.0,0.35997746]
[1744599625719,0.001,85088.0,85086.0,0.31017746]
[1744599625929,0.001,85088.0,85086.0,0.188045]
[1744599626697,0.001,85088.0,85084.0,0.0309206]
[1744599626908,0.13259354,85087.0,85084.0,0.0309206]
[1744599627111,0.12084154,85087.0,85084.0,0.2189696]
[1744599627531,0.12084154,85087.0,85084.0,0.2307226]
[1744599627732,0.13259354,85087.0,85084.0,0.0309206]
[1744599628729,0.188045,85086.0,85084.0,0.0309206]
[1744599628932,0.12084154,85085.0,85084.0,0.0309206]
[1744599629564,0.13538239,85085.0,85084.0,0.0309206]
[1744599630170,0.48452426,85085.0,85084.0,0.0309206]
[1744599630451,1.03198949,85085.0,85084.0,3.2e-07]
[1744599630653,0.011756,85058.0,85055.0,0.0008454]
[1744599630863,0.12084154,85057.0,85055.0,0.0008454]
[1744599631663,0.12084154,85057.0,85051.0,0.0008454]
[1744599631664,0.12084154,85057.0,85004.0,0.4187]
[1744599631974,0.12084154,85057.0,84945.0,0.17888179]
[1744599631975,0.1,84959.0,84945.0,0.17888179]
[1744599632181,0.629381,84934.0,84933.0,1.1e-07]
[1744599632697,0.76476339,84934.0,84933.0,1.1e-07]
[1744599633153,0.75022254,84934.0,84933.0,1.1e-07]
[1744599633376,0.011775,84924.0,84921.0,1.1e-07]
[1744599633565,0.629408,84922.0,84921.0,1.1e-07]
[1744599633720,0.75024954,84922.0,84921.0,1.1e-07]
[1744599633903,0.92072954,84922.0,84921.0,1.1e-07]
[1744599634104,0.92072954,84922.0,84921.0,0.00046684]
[1744599634310,0.11554085,84921.0,84920.0,0.22287227]
[1744599634564,0.2307325,84921.0,84920.0,0.028]
[1744599634739,0.24527335,84921.0,84920.0,0.028]
[1744599634940,0.2307325,84921.0,84920.0,0.028]
[1744599635103,0.24527335,84921.0,84920.0,0.028]
[1744599635308,0.629448,84904.0,84899.0,0.0004227]
[1744599635510,0.92088954,84904.0,84899.0,0.0004227]
[1744599635797,0.75028954,84904.0,84899.0,0.0004227]
[1744599635916,0.92088954,84904.0,84899.0,0.0004227]
[1744599636116,0.93543039,84904.0,84899.0,0.0004227]
[1744599636776,0.289457,84900.0,84899.0,0.0004227]
[1744599637026,1.18133939,84900.0,84899.0,0.0004227]
[1744599637439,1.18133939,84900.0,84891.0,0.002]
[1744599637440,0.64401485,84892.0,84891.0,7e-07]
[1744599637557,1.97557639,84892.0,84891.0,7e-07]
[1744599637957,1.97557639,84892.0,84861.0,0.002]
[1744599637958,0.64408185,84862.0,84861.0,0.002]
[1744599638157,0.64413085,84840.0,84839.0,1e-06]
[1744599638443,0.93557239,84840.0,84839.0,1e-06]
[1744599638572,0.001,84832.0,84831.0,0.00170328]
[1744599638773,0.22184154,84832.0,84831.0,0.00170328]
[1744599639098,0.001,84843.0,84840.0,0.011786]
[1744599639304,0.1,84846.0,84845.0,0.011786]
[1744599639514,0.1,84846.0,84845.0,0.0530389]
[1744599639711,0.1,84852.0,84851.0,0.188565]
[1744599640118,3.66,85080.0,84851.0,0.188565]
[1744599640119,0.101,84857.0,84853.0,0.188561]
[1744599640319,0.001,84859.0,84858.0,0.18855]
[1744599640521,0.101,84859.0,84858.0,0.18825199]
[1744599640716,0.001,84859.0,84858.0,0.27729701]
[1744599640991,0.12184154,84859.0,84858.0,0.05009467]
[1744599641294,0.76493039,84859.0,84858.0,0.00479467]
[1744599641632,0.76493039,84859.0,84834.0,0.011787]
[1744599641633,0.101,84833.0,84831.0,0.00170328]
[1744599641833,0.011787,84834.0,84831.0,0.00170328]
[1744599641834,0.22184154,84832.0,84831.0,0.00170328]
[1744599642441,0.1,84829.0,84827.0,0.188619]
[1744599642644,0.101,84847.0,84846.0,0.188576]
[1744599642844,0.22084154,84847.0,84846.0,0.188576]
[1744599643070,0.22399195,84859.0,84856.0,0.188554]
[1744599643274,0.22499195,84859.0,84856.0,0.200338]
[1744599643468,0.22299195,84859.0,84856.0,0.200338]
[1744599643679,0.22299195,84859.0,84856.0,0.20013927]
[1744599644094,0.13489933,84860.0,84859.0,0.00685927]
[1744599644748,0.13489933,84860.0,84859.0,0.00699844]
[1744599645537,0.25674087,84860.0,84859.0,0.00999844]
[1744599645743,0.1,84865.0,84859.0,0.00999844]
[1744599645744,0.05369261,84862.0,84860.0,0.10505087]
[1744599645962,0.05369261,84862.0,84860.0,0.156923]
[1744599646366,0.01554085,84860.0,84859.0,0.00313917]
[1744599646702,0.23638239,84860.0,84859.0,0.00313917]
[1744599646861,0.23638239,84860.0,84859.0,0.00613917]
[1744599647076,0.1,84855.0,84852.0,0.15640755]
[1744599647266,0.12084154,84854.0,84852.0,0.15640755]
[1744599647436,0.001,84847.0,84846.0,0.0453]
[1744599647633,0.001,84847.0,84846.0,0.0698669]
[1744599648035,0.101,84850.0,84847.0,0.200359]
[1744599648238,0.22184154,84850.0,84847.0,0.200359]
[1744599648492,0.22184154,84850.0,84847.0,0.011785]
[1744599648694,0.001,84849.0,84848.0,0.188572]
[1744599648871,0.001,84849.0,84848.0,0.1050621]
[1744599649078,0.001,84849.0,84848.0,0.11096073]
[1744599649421,0.001,84849.0,84848.0,0.00589863]
[1744599649559,0.001,84849.0,84848.0,0.19447063]
[1744599649769,0.001,84849.0,84848.0,0.22120489]
[1744599649988,0.001,84849.0,84848.0,0.19447063]
[1744599650766,0.001,84849.0,84848.0,0.19547063]
[1744599651505,0.001,84849.0,84848.0,0.13759836]
[1744599651707,0.001,84849.0,84848.0,0.1425583]
[1744599651911,0.001,84849.0,84848.0,0.1415583]
[1744599652205,0.001,84849.0,84848.0,0.18145853]
[1744599652775,0.001,84849.0,84848.0,0.13410544]
[1744599652970,0.00046076,84860.0,84859.0,0.188548]
[1744599653196,0.00046076,84860.0,84859.0,0.1933928]
[1744599653517,0.00046076,84860.0,84859.0,0.19574942]
[1744599653692,0.00046076,84860.0,84859.0,0.23615167]
[1744599654302,0.00046076,84860.0,84859.0,0.23379505]
[1744599654498,0.00046076,84860.0,84859.0,0.23615148]
[1744599654699,0.00046076,84860.0,84859.0,0.19696487]
[1744599654908,0.00046076,84860.0,84859.0,0.19896487]
[1744599655495,0.001,84880.0,84879.0,0.188503]
[1744599655694,0.12184154,84880.0,84879.0,0.18860671]
[1744599655927,0.1,84892.0,84890.0,0.188479]
[1744599656120,0.0008452,84894.0,84891.0,0.20495392]
[1744599656346,0.0008452,84894.0,84893.0,0.188472]
[1744599656539,0.1008452,84894.0,84893.0,0.19317338]
[1744599656746,0.23135995,84894.0,84893.0,0.00470138]
[1744599657084,0.11454085,84885.0,84878.0,0.011781]
[1744599657261,0.23538239,84885.0,84881.0,0.011781]
[1744599657440,0.23538239,84885.0,84884.0,0.0521063]
[1744599657757,0.23538239,84885.0,84884.0,0.05202651]
[1744599658175,0.23538239,84885.0,84884.0,0.0474]
[1744599658899,0.23638239,84885.0,84884.0,0.05202635]
[1744599659231,0.23638239,84885.0,84884.0,0.0474]
[1744599659568,0.23838239,84885.0,84882.0,0.17866889]
[1744599659867,0.23538239,84884.0,84883.0,0.03908366]
[1744599660481,0.11554085,84880.0,84879.0,0.00010371]
[1744599660634,0.23638239,84880.0,84879.0,0.00010371]
[1744599661248,0.22184154,84880.0,84879.0,0.00010371]
[1744599661669,0.001,84884.0,84883.0,0.188494]
[1744599662022,0.001,84884.0,84883.0,0.13063969]
[1744599662188,0.001,84885.0,84883.0,0.14168173]
[1744599662816,0.4165,84888.0,84885.0,0.20027]
[1744599662978,0.1,84886.0,84885.0,0.20027]
[1744599663182,0.4165,84888.0,84887.0,0.188485]
[1744599663402,0.4185,84889.0,84887.0,0.188485]
[1744599663790,0.4185,84889.0,84888.0,0.00736147]
[1744599664983,0.4185,84889.0,84888.0,0.01104204]
[1744599665435,0.4185,84889.0,84888.0,0.01304204]
[1744599666853,0.4185,84889.0,84888.0,0.01404204]
[1744599668390,0.002,84889.0,84888.0,0.01404204]
[1744599668678,0.002,84889.0,84887.0,0.15520228]
[1744599669920,0.002,84889.0,84887.0,0.15620228]
[1744599670960,0.002,84889.0,84887.0,0.15820228]
[1744599675631,0.002,84889.0,84887.0,0.15620228]
[1744599675774,0.002,84889.0,84887.0,0.15520228]
[1744599675975,0.002,84889.0,84887.0,0.15820228]
[1744599676182,0.002,84889.0,84887.0,0.15620228]
[1744599676381,0.002,84889.0,84887.0,0.1193942]
[1744599676587,0.002,84889.0,84887.0,0.1183942]
[1744599677764,0.002,84889.0,84887.0,0.1203942]
[1744599677969,0.002,84889.0,84887.0,0.1213942]
[1744599678997,0.002,84889.0,84888.0,0.05165572]
[1744599679181,0.002,84889.0,84888.0,0.0493]
[1744599680285,0.002,84889.0,84888.0,0.05165548]
[1744599680469,2e-07,84894.0,84893.0,0.528472]
[1744599680621,2e-07,84894.0,84893.0,0.6603521]
[1744599681057,2e-07,84894.0,84893.0,0.65299306]
[1744599682201,0.05369261,84908.0,84893.0,0.65299306]
[1744599682202,0.05369261,84908.0,84907.0,0.188441]
[1744599682338,0.05369261,84908.0,84907.0,0.358761]
[1744599682520,0.05369261,84908.0,84907.0,0.408661]
[1744599683426,0.04869261,84908.0,84907.0,0.41244423]
[1744599684096,0.0008452,84918.0,84917.0,0.188419]
[1744599684288,0.04869261,84955.0,84944.0,0.34]
[1744599684496,0.04869261,84955.0,84944.0,0.63116154]
[1744599684688,0.14869261,84955.0,84944.0,0.12084154]
[1744599684830,0.14869261,84955.0,84943.0,0.188361]
[1744599685035,0.1,84943.0,84929.0,0.011774]
[1744599685283,0.0126198,84945.0,84929.0,0.011774]
[1744599685284,0.1,84940.0,84929.0,0.011774]
[1744599685488,0.001,84941.0,84929.0,0.18839]
[1744599685489,0.1,84931.0,84929.0,0.18839]
[1744599686106,0.01554085,84936.0,84935.0,0.188379]
[1744599686312,0.13538239,84936.0,84935.0,0.19205739]
[1744599686632,0.1,84937.0,84935.0,0.19205739]
[1744599687207,0.1,84939.0,84938.0,0.188372]
[1744599687368,0.00130913,84945.0,84942.0,0.200135]
[1744599687983,0.00130913,84945.0,84944.0,0.188359]
[1744599688605,0.00130913,84945.0,84944.0,0.19203739]
[1744599689143,0.00130913,84945.0,84944.0,0.70147893]
[1744599689347,0.00130913,84945.0,84944.0,0.72289961]
[1744599689685,0.00130913,84945.0,84944.0,0.60205807]
[1744599690238,0.00130913,84945.0,84944.0,0.72289961]
[1744599690374,0.00330913,84945.0,84944.0,0.72289961]
[1744599690580,0.00630913,84945.0,84944.0,0.72289961]
[1744599690780,0.00130913,84945.0,84944.0,0.72289961]
[1744599691412,0.00130913,84945.0,84944.0,0.24063739]
[1744599691638,0.00130913,84945.0,84944.0,0.19203739]
[1744599691858,0.00130913,84945.0,84944.0,0.19303739]
[1744599692080,0.00130913,84945.0,84944.0,0.189359]
[1744599693615,0.00130913,84945.0,84944.0,0.001]
[1744599693949,0.00130913,84945.0,84944.0,0.0599642]
[1744599695346,0.00130913,84945.0,84944.0,0.001]
[1744599695729,0.42604852,84945.0,84944.0,0.001]
[1744599696100,0.23769152,84945.0,84944.0,0.001]
[1744599696503,0.01454085,84944.0,84942.0,0.011772]
[1744599696752,0.23769152,84945.0,84942.0,0.011772]
[1744599696753,0.13538239,84943.0,84942.0,0.011772]
[1744599697184,0.23538239,84943.0,84942.0,0.011772]
[1744599697423,0.11454085,84941.0,84940.0,0.011773]
[1744599697629,0.23538239,84941.0,84940.0,0.2425251]
[1744599697830,0.23538239,84941.0,84940.0,0.200141]
[1744599699759,0.001,84943.0,84940.0,0.200141]
[1744599699760,0.00130913,84945.0,84944.0,0.188359]
[1744599700571,0.001,84940.0,84938.0,0.011773]
[1744599700772,0.13638239,84940.0,84938.0,0.011773]
[1744599700930,0.13638239,84940.0,84939.0,0.18837]
[1744599701162,0.00230913,84945.0,84944.0,0.188359]
[1744599701688,0.00130913,84945.0,84944.0,0.188359]
[1744599703606,0.00130913,84945.0,84944.0,0.189359]
[1744599704045,0.09860987,84947.0,84946.0,0.188354]
[1744599704248,0.09860987,84947.0,84946.0,0.18845771]
[1744599704437,0.09860987,84952.0,84948.0,0.18835]
[1744599704720,0.10060987,84949.0,84948.0,0.18835]
[1744599706873,0.10160987,84949.0,84948.0,0.18835]
[1744599707780,0.10060987,84949.0,84948.0,0.18835]
[1744599708339,0.10060987,84949.0,84948.0,0.18935]
[1744599709341,0.002,84949.0,84948.0,0.18935]
[1744599709677,0.002,84949.0,84948.0,0.19170394]
[1744599710197,0.002,84949.0,84948.0,0.18935]
[1744599714053,0.002,84949.0,84948.0,0.36504851]
[1744599715855,0.002,84949.0,84948.0,0.23505]
[1744599716057,0.002,84949.0,84948.0,0.001]
[1744599716303,0.002,84949.0,84948.0,0.18935]
[1744599717146,0.002,84949.0,84948.0,0.1917041]
[1744599717408,0.002,84949.0,84948.0,0.19170398]
[1744599717630,0.002,84949.0,84948.0,0.25027565]
[1744599717817,0.002,84949.0,84948.0,0.24792167]
[1744599720748,0.002,84949.0,84948.0,0.25159871]
[1744599721029,0.002,84949.0,84948.0,0.19302704]
[1744599721940,0.002,84949.0,84948.0,0.18935]
[1744599724550,0.002,84949.0,84948.0,0.001]
[1744599724551,0.11615072,84949.0,84948.0,0.001]
[1744599724749,0.45415072,84947.0,84946.0,7.1e-07]
[1744599724952,0.011776,84916.0,84912.0,0.011776]
[1744599725247,0.16992,84916.0,84914.0,0.2002]
[1744599725449,0.188423,84915.0,84913.0,0.00088343]
[1744599725654,0.01554085,84914.0,84913.0,0.00088343]
[1744599725967,0.13638239,84914.0,84913.0,0.00088343]
[1744599727113,0.13638239,84914.0,84913.0,0.02334867]
[1744599727330,0.13738239,84914.0,84913.0,0.02334867]
[1744599727584,0.14540212,84914.0,84913.0,0.02334867]
[1744599727792,0.13638239,84914.0,84913.0,0.00088343]
[1744599728297,0.23499226,84914.0,84913.0,0.00088343]
[1744599729147,0.66033018,84914.0,84913.0,0.00088343]
[1744599729965,0.66133018,84914.0,84913.0,0.00088343]
[1744599730364,0.66033018,84914.0,84913.0,0.00088343]
[1744599730605,0.66333018,84914.0,84913.0,0.00088343]
[1744599730880,0.83129018,84914.0,84913.0,0.00088343]
[1744599731297,0.83529018,84914.0,84913.0,0.00088343]
[1744599731587,1.17829018,84914.0,84913.0,0.00088343]
[1744599731791,1.00833018,84914.0,84913.0,0.00088343]
[1744599731989,1.17833018,84914.0,84913.0,0.00088343]
[1744599732391,1.17333018,84914.0,84913.0,0.00088343]
[1744599732903,1.17233018,84914.0,84913.0,0.00088343]
[1744599733108,1.17033018,84914.0,84913.0,0.00088343]
[1744599733395,1.17833018,84914.0,84913.0,0.00088343]
[1744599733772,1.00733018,84914.0,84913.0,0.00088343]
[1744599733983,1.18133018,84914.0,84913.0,0.00088343]
[1744599734185,1.01133018,84914.0,84913.0,0.00088343]
[1744599734379,1.18133018,84914.0,84913.0,0.00088343]
[1744599737141,1.30205866,84914.0,84913.0,0.00088343]
[1744599737341,1.18133018,84914.0,84913.0,0.00088343]
[1744599742387,0.188479,84891.0,84889.0,0.0004223]
[1744599742588,0.17004,84890.0,84889.0,0.00056149]
[1744599742823,0.17879504,84890.0,84889.0,0.00056149]
[1744599743115,0.730794,84890.0,84889.0,0.00056149]
[1744599743322,0.82940387,84890.0,84889.0,0.00056149]
[1744599744862,0.52298148,84890.0,84889.0,0.00056149]
[1744599745064,0.69274148,84890.0,84889.0,0.04067134]
[1744599745270,0.52298148,84890.0,84889.0,0.04067134]
[1744599745642,0.65936387,84890.0,84889.0,0.00056149]
[1744599749312,0.82912387,84890.0,84889.0,0.00056149]
[1744599750248,0.65936387,84890.0,84889.0,0.00056149]
[1744599750453,0.82916387,84890.0,84889.0,0.00056149]
[1744599753601,0.83016387,84890.0,84889.0,0.00056149]
[1744599754814,0.65936387,84890.0,84889.0,0.02417884]
[1744599755015,0.52498148,84890.0,84889.0,0.02417884]
[1744599755645,0.41761657,84890.0,84889.0,0.02417884]
[1744599755843,0.05,84900.0,84897.0,0.011778]
[1744599756045,0.05,84900.0,84897.0,0.0141335]
[1744599756273,0.05,84900.0,84898.0,0.188461]
[1744599756474,0.05,84900.0,84899.0,0.05668513]
[1744599757268,0.05,84900.0,84899.0,0.05904068]
[1744599757466,0.05,84900.0,84899.0,0.06036469]